bitfinex-derivatives/quotes_ETHF0:USTF0_20251031
["timestamp","ask_amount","ask_price","bid_price","bid_amount"]
[1761927638727,3.2078,3846.2,3846.0,0.1365]
[1761927638929,3.2078,3846.2,3846.1,0.2256]
[1761927638930,3.67599,3846.2,3846.1,0.2256]
[1761927639145,1.38392616,3847.0,3846.9,0.2256]
[1761927639388,1.10065347,3847.0,3846.9,0.2256]
[1761927639545,0.4681,3847.0,3846.9,3.4334]
[1761927639737,0.46804,3847.5,3847.4,0.2256]
[1761927640434,0.46986101,3847.5,3847.4,0.22776403]
[1761927641941,4.37765,3848.4,3847.4,3.43556403]
[1761927642149,0.46799,3847.9,3847.8,0.3621]
[1761927642945,0.47036491,3847.9,3847.8,0.3621]
[1761927643147,0.47036491,3847.9,3847.8,0.1365]
[1761927644648,8.00237491,3847.9,3847.4,0.00216403]
[1761927644839,3.2078,3847.5,3847.4,0.00216403]
[1761927646353,0.00237491,3847.9,3847.8,0.1395]
[1761927646552,0.47036491,3847.9,3847.8,0.1395]
[1761927646852,3.67816491,3847.9,3847.8,0.1395]
[1761927648655,3.21017491,3847.9,3847.4,0.00216403]
[1761927648844,3.2078,3847.5,3847.4,0.00216403]
[1761927651944,3.2078,3847.5,3847.0,0.1365]
[1761927652150,3.2078,3847.1,3846.5,0.1365]
[1761927652349,3.2078,3847.1,3847.0,0.1395]
[1761927652548,3.2078,3847.1,3846.5,0.1365]
[1761927652756,3.2078,3847.4,3847.0,0.1395]
[1761927654647,3.2078,3847.8,3847.0,0.1395]
[1761927655054,3.2078,3847.4,3847.0,0.1395]
[1761927656354,0.46808,3847.1,3847.0,0.1395]
[1761927656560,0.46808,3847.1,3847.0,0.3704]
[1761927657356,0.46808,3847.1,3847.0,0.1395]
[1761927657758,0.46814,3846.6,3846.5,0.13985277]
[1761927660244,3.2078,3847.3,3847.0,0.1395]
[1761927663163,3.2078,3847.3,3847.2,0.2309]
[1761927664359,3.2078,3847.7,3847.5,0.1395]
[1761927665160,3.2078,3847.7,3847.6,0.2309]
[1761927665352,0.00237491,3847.9,3847.8,0.2309]
[1761927667359,0.00237491,3847.9,3847.5,0.1395]
[1761927668263,0.62878853,3847.8,3847.5,0.1395]
[1761927668455,0.00237491,3847.9,3847.5,0.1395]
[1761927668655,0.6287702,3847.8,3847.5,0.1395]
[1761927668861,0.00237491,3847.9,3847.5,0.1395]
[1761927669062,0.62876493,3847.8,3847.5,0.1395]
[1761927669362,0.62876493,3847.7,3847.5,0.1395]
[1761927669566,0.00237491,3847.9,3847.5,0.1395]
[1761927669759,0.62883872,3847.8,3847.5,0.1395]
[1761927669957,0.62883872,3847.7,3847.5,0.1395]
[1761927670159,0.00237491,3847.9,3847.5,0.1395]
[1761927670362,0.62882376,3847.8,3847.5,0.1395]
[1761927670662,0.00237491,3847.9,3847.0,9.3325]
[1761927670663,3.2078,3847.6,3847.0,0.1395]
[1761927670970,0.62882376,3847.5,3847.0,0.1395]
[1761927671166,0.62882376,3847.4,3847.0,0.1395]
[1761927671368,0.62882376,3847.3,3847.0,0.1395]
[1761927671566,0.62882376,3847.2,3847.0,0.1395]
[1761927671865,3.2078,3847.2,3847.0,0.1395]
[1761927672569,3.2078,3847.2,3847.1,0.2309]
[1761927672765,3.2078,3847.7,3847.1,0.2309]
[1761927672960,3.2078,3847.7,3847.0,0.1395]
[1761927672961,0.62944852,3847.6,3847.5,0.1395]
[1761927673966,0.62944852,3847.6,3847.5,0.3704]
[1761927674266,0.62944852,3847.6,3847.5,0.1395]
[1761927675662,0.62944852,3847.6,3847.5,0.3585]
[1761927677259,0.00237491,3847.9,3847.8,0.219]
[1761927677966,3.2078,3848.9,3848.5,0.131]
[1761927678270,0.62948234,3848.8,3848.5,0.131]
[1761927678577,0.62948234,3848.7,3848.5,0.131]
[1761927678866,0.62948234,3848.6,3848.5,0.131]
[1761927679066,0.62948234,3848.6,3848.0,0.131]
[1761927679372,3.2078,3848.2,3848.0,0.131]
[1761927679573,0.62948234,3848.1,3848.0,0.131]
[1761927681171,0.62948234,3848.1,3848.0,0.35]
[1761927681872,0.62948234,3848.1,3848.0,0.131]
[1761927682063,0.62948234,3848.1,3848.0,0.35]
[1761927682265,0.62948234,3848.1,3848.0,0.131]
[1761927682466,0.62948234,3848.1,3848.0,0.35]
[1761927682665,0.62948234,3848.1,3848.0,0.131]
[1761927682872,0.62948234,3848.1,3848.0,0.3492]
[1761927683670,3.2078,3848.2,3848.1,0.2182]
[1761927685869,3.21078667,3848.7,3848.6,0.2182]
[1761927686075,3.83893845,3848.7,3848.6,0.2182]
[1761927686276,0.63113845,3848.7,3848.6,0.2182]
[1761927686470,0.00298667,3848.7,3848.6,0.2182]
[1761927689091,0.00298667,3848.7,3848.5,0.1391]
[1761927689379,0.00298667,3848.7,3848.6,0.2182]
[1761927690071,0.00298667,3848.7,3848.6,0.68612]
[1761927690269,8.21638423,3849.4,3848.6,0.68612]
[1761927690270,8.21638423,3849.4,3849.3,0.2182]
[1761927690472,3.2078,3850.3,3850.0,0.1391]
[1761927690661,0.62761319,3850.2,3850.0,0.1391]
[1761927690866,3.2078,3850.3,3850.0,0.3573]
[1761927691172,0.62780556,3850.2,3850.1,0.2182]
[1761927691373,0.00298419,3850.2,3850.1,0.22112028]
[1761927691572,0.00298419,3850.2,3850.1,0.00292028]
[1761927691872,0.00298419,3850.2,3850.1,0.22112028]
[1761927692467,0.00298419,3850.2,3850.1,3.42892028]
[1761927692674,3.25977,3851.1,3851.0,0.1391]
[1761927692870,3.88686921,3851.1,3851.0,0.1391]
[1761927693776,3.88933112,3851.1,3850.5,0.1391]
[1761927693970,3.2078,3850.6,3850.5,0.1391]
[1761927695574,3.2078,3850.6,3850.1,0.00292028]
[1761927695774,3.2078,3850.6,3850.5,0.1391]
[1761927696576,3.2078,3850.6,3850.5,0.3573]
[1761927698080,3.2078,3851.0,3850.5,0.3573]
[1761927698388,3.2078,3851.0,3850.9,0.2182]
[1761927698881,0.05443191,3851.1,3851.0,0.3573]
[1761927699287,0.05443191,3851.1,3851.0,0.1391]
[1761927700089,0.05443191,3851.1,3851.0,0.3573]
[1761927702075,3.2078,3851.8,3851.5,0.1391]
[1761927702481,3.2078,3851.8,3851.7,0.2182]
[1761927702983,3.2078,3851.8,3851.5,0.1391]
[1761927703285,3.21046754,3851.8,3851.5,0.1391]
[1761927703479,3.21046754,3851.8,3851.7,0.2351]
[1761927704987,3.21046754,3851.8,3851.5,0.1391]
[1761927705589,3.21046754,3851.8,3851.7,0.2351]
[1761927705985,3.21046754,3851.8,3851.5,0.1391]
[1761927707385,3.21046754,3851.8,3851.0,0.1391]
[1761927707584,3.2078,3851.1,3851.0,0.1391]
[1761927709993,3.2078,3851.1,3851.0,0.3742]
[1761927710187,0.00266754,3851.8,3851.0,0.3742]
[1761927710188,3.2078,3851.6,3851.5,0.1393]
[1761927710382,3.83130806,3851.6,3851.5,0.1393]
[1761927711089,0.00266754,3851.8,3851.7,0.2351]
[1761927714191,0.00266754,3851.8,3851.5,0.1393]
[1761927714393,0.00266754,3851.8,3851.7,0.2351]
[1761927714592,3.2078,3852.9,3852.5,0.1393]
[1761927714889,0.6248551,3852.8,3852.7,0.2351]
[1761927715096,3.2078,3853.3,3852.8,0.2351]
[1761927715392,0.6248631,3853.2,3853.0,0.1393]
[1761927715592,0.6248631,3853.1,3853.0,0.1393]
[1761927716096,0.6248631,3853.2,3853.0,0.1393]
[1761927720190,0.62526782,3852.6,3852.5,0.37758644]
[1761927721395,0.62526782,3852.6,3852.5,0.14248644]
[1761927721600,0.62526782,3852.6,3852.5,0.00318644]
[1761927721895,0.62526782,3852.6,3852.5,0.14248644]
[1761927722796,0.62526782,3852.6,3851.5,0.1393]
[1761927723097,3.2078,3851.6,3851.5,0.1393]
[1761927723291,3.83306782,3851.6,3851.5,0.1393]
[1761927723900,3.83306782,3851.6,3851.5,0.37736885]
[1761927724497,0.62526782,3851.6,3851.5,0.37736885]
[1761927724700,3.2078,3852.5,3852.0,0.1393]
[1761927724906,0.6270561,3852.4,3852.0,0.1393]
[1761927725200,0.6270561,3852.3,3852.0,0.1393]
[1761927725402,0.6270561,3852.2,3852.0,0.1393]
[1761927725598,3.8348561,3852.1,3852.0,0.1393]
[1761927725792,3.8348561,3852.1,3851.5,0.14226885]
[1761927725992,0.6270561,3852.0,3851.5,0.14226885]
[1761927726193,3.2078,3851.6,3851.5,0.14226885]
[1761927726400,3.8348561,3851.6,3851.5,0.14226885]
[1761927727099,11.8348561,3851.6,3851.0,0.1393]
[1761927727303,3.2078,3851.1,3851.0,0.1393]
[1761927727503,3.8348561,3851.1,3851.0,0.1393]
[1761927728200,3.8348561,3851.1,3851.0,0.14194671]
[1761927728506,3.8348561,3851.1,3851.0,0.37704671]
[1761927729500,3.8348561,3851.1,3851.0,0.14194671]
[1761927730101,3.8348561,3851.1,3851.0,0.00264671]
[1761927730596,3.83548917,3851.1,3851.0,0.00264671]
[1761927730800,3.83548917,3851.1,3851.0,0.14194671]
[1761927731107,3.83548917,3851.1,3851.0,0.00264671]
[1761927731703,3.83548917,3851.1,3850.0,0.1393]
[1761927731909,3.2078,3850.2,3850.0,0.1393]
[1761927732120,0.62768917,3850.1,3850.0,0.3744]
[1761927732302,3.2078,3851.2,3851.0,0.1393]
[1761927732514,0.62738074,3851.1,3851.0,0.1393]
[1761927732799,0.63066089,3851.1,3851.0,0.14137424]
[1761927735803,0.63066089,3851.1,3851.0,0.00207424]
[1761927736302,0.63066089,3851.1,3850.5,0.1393]
[1761927736515,3.2078,3850.6,3850.5,0.1393]
[1761927736700,3.83518074,3850.6,3850.5,0.1393]
[1761927737409,3.83518074,3850.6,3850.5,0.14128768]
[1761927738797,3.2078,3850.6,3850.5,0.14128768]
[1761927739103,3.2078,3850.6,3850.5,0.36148768]
[1761927739310,3.2078,3850.6,3850.5,0.00198768]
[1761927739500,3.83448999,3850.6,3849.5,0.1393]
[1761927739814,3.2078,3849.6,3848.5,0.1314]
[1761927740002,3.2078,3849.1,3849.0,0.3521]
[1761927740201,3.2078,3849.5,3849.0,0.3521]
[1761927740400,3.2078,3849.1,3849.0,0.1308]
[1761927740700,3.2078,3849.1,3849.0,0.13335384]
[1761927743403,3.2078,3849.1,3849.0,0.35465384]
[1761927745406,3.2078,3849.1,3849.0,0.13335384]
[1761927746901,3.2078,3849.1,3849.0,0.35465384]
[1761927747103,3.2078,3849.5,3849.0,0.13335384]
[1761927747410,3.2078,3849.5,3849.4,0.2213]
[1761927748013,3.2078,3849.5,3849.4,0.68915]
[1761927748416,3.2078,3849.5,3849.4,0.2213]
[1761927750711,3.2078,3849.5,3849.0,0.13335384]
[1761927750915,3.2078,3849.1,3849.0,0.13335384]
[1761927757324,3.83477527,3849.1,3849.0,0.13335384]
[1761927757726,3.2078,3849.1,3849.0,0.00255384]
[1761927757925,3.83472272,3849.1,3849.0,0.13395384]
[1761927758126,3.2078,3849.1,3849.0,0.13395384]
[1761927758327,3.8349211,3849.1,3849.0,0.13395384]
[1761927758530,3.8349211,3849.1,3849.0,0.00255384]
[1761927759029,3.8349211,3849.1,3848.5,0.1314]
[1761927759230,3.2078,3848.7,3848.5,0.1314]
[1761927760024,3.2078,3848.7,3848.5,0.13422255]
[1761927760220,3.2078,3848.7,3848.5,0.00282255]
[1761927760420,0.62716508,3848.6,3848.5,0.13422255]
[1761927760626,3.2078,3848.7,3848.5,0.13422255]
[1761927761828,0.62722714,3848.6,3848.5,0.13422255]
[1761927762826,0.62722714,3848.6,3848.5,0.00282255]
[1761927763719,0.62722714,3848.6,3848.5,0.14462255]
[1761927764824,0.62722714,3848.6,3848.5,0.36392255]
[1761927765327,0.62722714,3848.6,3848.5,0.14462255]
[1761927770029,0.62722714,3848.6,3848.5,0.36392255]
[1761927770234,0.62722714,3848.6,3848.5,0.14462255]
[1761927770735,0.62722714,3848.6,3848.5,0.36392255]
[1761927771633,0.62722714,3848.6,3848.5,0.14462255]
[1761927773929,0.62722714,3848.6,3848.0,0.1314]
[1761927773930,2.01323999,3848.6,3848.0,0.1314]
[1761927774136,3.2078,3848.1,3847.8,0.20629]
[1761927774332,0.62722714,3848.0,3847.8,0.20629]
[1761927774835,0.62722714,3848.0,3847.8,0.20851713]
[1761927774836,0.62990201,3848.0,3847.8,0.20851713]
[1761927775036,0.62990201,3848.0,3847.8,0.42781713]
[1761927775037,0.62722714,3847.9,3847.8,0.42781713]
[1761927775537,0.62722714,3847.9,3847.8,0.89586713]
[1761927775832,0.62722714,3847.9,3847.8,0.42781713]
[1761927776135,0.62722714,3847.9,3847.8,0.20851713]
[1761927778433,0.62722714,3847.9,3847.8,0.42781713]
[1761927779435,0.62722714,3847.9,3847.8,0.89586713]
[1761927780731,0.62722714,3847.9,3847.8,4.10366713]
[1761927780936,0.00267487,3848.0,3847.9,0.68734]
[1761927781630,4.59381285,3848.9,3848.5,0.60976]
[1761927781832,3.2078,3848.9,3848.8,0.2193]
[1761927782027,3.83686713,3848.9,3848.8,0.2193]
[1761927782233,0.62906713,3848.9,3848.8,0.68723]
[1761927782435,0.62906713,3848.9,3848.8,0.2193]
[1761927782730,0.6319216,3848.9,3848.8,0.68723]
[1761927783732,1.38601285,3849.6,3849.5,0.3611]
[1761927784034,3.2078,3849.7,3849.5,0.3611]
[1761927784035,3.2078,3849.7,3849.6,0.2193]
[1761927784942,3.21061955,3849.7,3849.6,0.2193]
[1761927787727,3.21061955,3849.7,3849.6,0.68713]
[1761927788139,0.00281955,3849.7,3849.6,0.68713]
[1761927788440,3.2078,3850.1,3850.0,0.3611]
[1761927788634,3.2078,3850.1,3850.0,0.82889]
[1761927789042,3.2078,3850.6,3850.5,0.1418]
[1761927789333,3.2098837,3850.6,3850.5,0.36302195]
[1761927789539,3.2098837,3850.6,3850.5,0.14372195]
[1761927790130,3.2098837,3850.6,3850.5,0.36302195]
[1761927790334,3.2098837,3850.6,3850.5,0.14372195]
[1761927792028,3.2098837,3850.6,3850.5,0.00192195]
[1761927793847,3.2098837,3850.6,3850.5,0.36942195]
[1761927794644,3.2098837,3850.6,3850.5,0.13452195]
[1761927795646,3.2098837,3850.6,3850.5,0.00192195]
[1761927795946,3.2098837,3850.6,3850.5,2.195e-05]
[1761927796339,3.8320532,3850.6,3850.5,2.195e-05]
[1761927796536,3.8320532,3850.6,3850.5,0.13262195]
[1761927796939,3.8320532,3850.6,3850.5,2.195e-05]
[1761927797448,3.8320532,3850.6,3850.0,0.1418]
[1761927797638,3.2078,3850.1,3850.0,0.1418]
[1761927798449,3.2078,3850.1,3850.0,0.14392054]
[1761927802551,3.2078,3850.1,3850.0,0.37882054]
[1761927803551,0.0020837,3850.6,3850.0,0.37882054]
[1761927803552,3.2078,3850.5,3850.0,0.37882054]
[1761927803943,3.2078,3850.5,3850.4,0.2357]
[1761927804550,3.2078,3850.5,3850.0,0.14392054]
[1761927805547,3.2078,3850.1,3850.0,0.14392054]
[1761927805945,3.2078,3850.1,3850.0,0.37962054]
[1761927807550,3.2098837,3850.6,3850.5,0.1399]
[1761927807742,3.2098837,3850.6,3850.5,0.3756]
[1761927807942,3.2098837,3850.6,3850.5,0.1399]
[1761927809654,3.2098837,3850.6,3850.5,0.3756]
[1761927810855,0.0020837,3850.6,3850.5,0.3756]
[1761927811052,0.0020837,3850.6,3850.5,0.84331]
[1761927811254,0.0020837,3850.6,3850.5,4.05111]
[1761927811454,0.20721051,3851.8,3851.5,0.1399]
[1761927811455,3.2078,3851.8,3851.5,0.1399]
[1761927811847,3.2078,3851.8,3851.5,0.60749]
[1761927812057,3.2078,3851.8,3851.7,0.2357]
[1761927812453,3.20968577,3851.8,3851.5,0.1399]
[1761927812848,0.62499632,3851.7,3851.5,0.1399]
[1761927813054,0.62499013,3851.6,3851.5,0.1399]
[1761927813462,0.62499013,3851.6,3851.0,0.1399]
[1761927813658,3.2078,3851.4,3851.0,0.1399]
[1761927813958,0.62513196,3851.3,3851.0,0.1399]
[1761927814260,3.2078,3851.4,3851.0,0.1399]
[1761927814661,3.20968577,3851.8,3851.5,0.1399]
[1761927814965,0.62520257,3851.7,3851.5,0.1399]
[1761927815157,0.62520257,3851.6,3851.5,0.1399]
[1761927815458,3.20968577,3851.8,3851.5,0.1399]
[1761927815668,0.62507413,3851.7,3851.5,0.1399]
[1761927815963,0.62507413,3851.6,3851.5,0.1399]
[1761927817465,0.62507413,3851.6,3850.5,0.60761]
[1761927817768,3.2078,3851.1,3851.0,0.1399]
[1761927818462,3.83247554,3851.1,3851.0,0.1399]
[1761927819265,3.2078,3851.1,3851.0,0.1399]
[1761927819765,3.83232163,3851.1,3851.0,0.1399]
[1761927820066,3.83232163,3851.1,3850.5,0.1399]
[1761927820265,0.62452163,3851.0,3850.5,0.1399]
[1761927820468,0.62443662,3850.9,3850.5,0.1399]
[1761927820670,3.2078,3851.1,3850.5,0.1399]
[1761927820860,0.62444049,3851.0,3850.5,0.1399]
[1761927821063,0.62444049,3850.9,3850.5,0.1399]
[1761927821361,3.2078,3851.1,3850.5,0.1399]
[1761927821664,0.62443771,3851.0,3850.5,0.1399]
[1761927821966,0.62443771,3850.9,3850.5,0.1399]
[1761927822270,3.2078,3851.1,3851.0,0.1399]
[1761927822567,3.83227426,3851.1,3851.0,0.1399]
[1761927822962,3.83227426,3851.1,3851.0,0.3756]
[1761927823176,3.2078,3851.1,3851.0,0.1399]
[1761927823766,3.83040934,3851.1,3851.0,0.1399]
[1761927824763,3.83040934,3851.1,3850.5,0.1399]
[1761927824959,0.62260934,3851.0,3850.5,0.1399]
[1761927826762,0.62260934,3851.0,3850.6,0.46771]
[1761927826967,0.62260934,3851.0,3850.9,0.2365]
[1761927827171,3.2078,3851.1,3851.0,0.3723]
[1761927827478,3.2078,3851.1,3851.0,0.83996]
[1761927828575,3.2078,3851.6,3851.5,0.3723]
[1761927828777,3.83086655,3851.6,3851.5,0.3723]
[1761927829275,3.2078,3851.6,3851.5,0.3723]
[1761927829690,3.2078,3851.6,3851.5,0.83989]
[1761927829885,3.2078,3851.6,3851.5,0.3723]
[1761927830093,0.00188577,3851.8,3851.5,0.1358]
[1761927830288,0.6234146,3851.7,3851.5,0.1358]
[1761927830483,0.6234146,3851.6,3851.5,0.1358]
[1761927830887,0.6234146,3851.7,3851.5,0.1358]
[1761927831097,0.6234146,3851.6,3851.5,0.1358]
[1761927831788,0.6234146,3851.7,3851.5,0.1358]
[1761927834988,0.6234146,3851.7,3851.6,0.2365]
[1761927837191,0.00188577,3851.8,3851.5,0.1358]
[1761927837192,0.00188577,3851.8,3851.7,0.70407]
[1761927837582,3.2078,3852.9,3852.5,0.1358]
[1761927837783,0.62428151,3852.8,3852.5,0.1358]
[1761927837987,0.62428151,3852.7,3852.5,0.1358]
[1761927838187,0.62428151,3852.6,3852.5,0.3723]
[1761927838596,0.62624181,3852.6,3852.5,0.1358]
[1761927839198,0.62624181,3852.6,3852.5,0.3723]
[1761927840698,0.62624181,3852.6,3852.5,0.1358]
[1761927841990,0.62624181,3852.6,3852.5,0.3723]
[1761927842185,0.0019603,3852.6,3852.5,0.83977]
[1761927842490,3.2078,3853.3,3853.0,0.60321]
[1761927842789,3.2078,3853.3,3853.0,0.1358]
[1761927843597,3.21105039,3853.3,3853.0,0.13839137]
[1761927843796,0.62327919,3853.2,3853.0,0.13839137]
[1761927844099,3.21105039,3853.3,3853.0,0.13839137]
[1761927846800,3.21105039,3853.3,3853.2,0.2365]
[1761927847688,3.21105039,3853.3,3853.0,0.13839137]
[1761927850608,0.00325039,3853.3,3853.0,0.13839137]
[1761927850902,0.00325039,3853.3,3853.2,0.2365]
[1761927851902,0.00325039,3853.3,3853.2,0.70389]
[1761927856503,0.00325039,3853.3,3853.2,9.4055]
[1761927857408,0.00325039,3853.3,3853.2,9.87289]
[1761927858308,0.00325039,3853.3,3853.2,9.4055]
[1761927858806,0.00325039,3853.3,3853.2,9.87289]
[1761927859406,0.00325039,3853.3,3853.2,13.08069]
[1761927859606,3.2078,3854.2,3854.1,0.2141]
[1761927859800,11.45298425,3854.7,3854.5,0.1324]
[1761927860001,0.62228439,3854.6,3854.5,0.1324]
[1761927860603,0.62491796,3854.6,3854.5,0.3465]
[1761927860805,0.00263357,3854.6,3854.5,0.3465]
[1761927861508,3.357e-05,3854.7,3854.6,0.68222]
[1761927862610,3.2078,3855.5,3855.4,0.215]
[1761927863107,3.2078,3855.9,3855.8,0.215]
[1761927863304,3.82981469,3855.9,3855.8,0.215]
[1761927863501,3.82981469,3855.9,3855.8,0.21688286]
[1761927863502,3.21113918,3855.9,3855.8,0.21688286]
[1761927865815,3.21113918,3855.9,3855.8,0.00188286]
[1761927866516,3.21113918,3855.9,3855.8,0.21688286]
[1761927867410,3.21113918,3855.9,3855.8,0.00188286]
[1761927867609,3.21113918,3855.9,3855.8,0.21688286]
[1761927869311,0.00333918,3855.9,3855.8,0.21688286]
[1761927869917,0.00333918,3855.9,3855.8,0.68395286]
[1761927870312,3.918e-05,3855.9,3855.8,0.68395286]
[1761927870511,3.2078,3856.7,3856.5,0.132]
[1761927870819,3.2078,3856.7,3856.5,0.347]
[1761927871606,3.21003638,3856.7,3856.5,0.132]
[1761927872010,3.21003638,3856.7,3856.6,0.215]
[1761927872621,3.21003638,3856.7,3856.5,0.132]
[1761927874521,3.21003638,3856.7,3856.6,0.215]
[1761927874522,0.00223638,3856.7,3856.6,0.215]
[1761927875414,0.00223638,3856.7,3856.6,0.68198]
[1761927876517,0.00223638,3856.7,3856.6,0.215]
[1761927876920,0.00223638,3856.7,3856.6,0.68198]
[1761927878522,3.638e-05,3856.7,3856.6,0.68198]
[1761927880016,3.638e-05,3856.7,3856.6,8.68198]
[1761927880216,3.2078,3858.0,3857.9,0.215]
[1761927881328,3.21061534,3858.0,3857.9,0.215]
[1761927882324,15.25265305,3859.5,3857.9,0.215]
[1761927882325,0.1417,3859.0,3858.9,0.1669]
[1761927882622,0.1417,3859.0,3858.9,9.3229]
[1761927883025,0.2146,3858.6,3858.5,3.2078]
[1761927883223,0.21662803,3858.6,3858.5,12.36623612]
[1761927884429,0.21662803,3858.6,3858.5,9.15743612]
[1761927884630,0.21662803,3858.6,3858.5,0.00243612]
[1761927884925,0.21662803,3858.6,3858.5,9.15743612]
[1761927885517,0.21662803,3858.6,3858.5,0.00243612]
[1761927889036,0.21662803,3858.6,3858.5,0.46918612]
[1761927889345,0.00202803,3858.6,3858.5,0.63538612]
[1761927889547,0.00202803,3858.6,3858.5,0.16863612]
[1761927889945,0.23232803,3858.6,3858.5,0.00243612]
[1761927890636,0.23232803,3858.6,3858.5,9.15443612]
[1761927890838,0.84617541,3858.6,3858.5,9.15443612]
[1761927891033,0.84617541,3858.6,3858.5,0.00243612]
[1761927894548,0.61587541,3858.6,3858.5,0.00243612]
[1761927894840,0.61587541,3858.6,3858.5,0.63538612]
[1761927895041,0.00202803,3858.6,3858.5,0.63538612]
[1761927895243,0.00202803,3858.6,3858.5,0.66958612]
[1761927896248,0.23232803,3858.6,3858.5,0.00243612]
[1761927896548,0.23232803,3858.6,3858.5,9.15343612]
[1761927896746,0.23232803,3858.6,3858.5,9.62018612]
[1761927897336,0.00202803,3858.6,3858.5,9.78638612]
[1761927897541,0.00202803,3858.6,3858.5,9.78538612]
[1761927898644,0.00202803,3858.6,3858.5,0.16863612]
[1761927898843,0.00202803,3858.6,3858.5,9.78538612]
[1761927900251,0.00202803,3858.6,3858.5,9.31863612]
[1761927900554,0.00202803,3858.6,3858.5,9.78538612]
[1761927902847,0.1417,3859.5,3859.4,0.63084]
[1761927903048,0.1417,3859.5,3859.4,9.77984]
[1761927903249,0.75719933,3859.5,3859.4,9.3132]
[1761927903751,0.2303,3858.7,3858.6,0.46673]
[1761927903945,0.1305,3859.0,3858.6,9.149]
[1761927904140,0.61603712,3858.9,3858.8,0.1642]
[1761927904348,0.2303,3858.7,3858.6,9.149]
[1761927904550,0.2303,3858.6,3858.5,3.21023612]
[1761927904846,0.2303,3858.6,3858.5,12.35823612]
[1761927905050,0.61607128,3858.6,3858.5,12.52243612]
[1761927905354,0.1305,3859.0,3858.9,0.1642]
[1761927905555,0.1305,3859.0,3858.9,9.3122]
[1761927905753,3.35258764,3859.5,3859.2,0.1642]
[1761927905956,0.61628144,3859.4,3859.3,9.148]
[1761927906253,0.61628144,3859.4,3859.3,9.77883]
[1761927907356,0.61628144,3859.4,3859.3,9.3122]
[1761927908144,0.61628144,3859.4,3859.3,9.77884]
[1761927908344,0.00308764,3859.5,3859.4,0.63083]
[1761927908547,0.61999553,3859.5,3859.4,0.63083]
[1761927908748,0.00308764,3859.5,3859.4,0.1642]
[1761927908959,0.00308764,3859.5,3859.4,0.63083]
[1761927909158,0.00308764,3859.5,3859.4,9.77783]
[1761927909363,0.00308764,3859.5,3859.4,0.63083]
[1761927909658,0.00308764,3859.5,3859.4,9.77783]
[1761927910155,0.13358764,3859.5,3859.4,9.77783]
[1761927910959,0.36388764,3859.5,3859.4,9.77783]
[1761927911160,0.13358764,3859.5,3859.4,9.77783]
[1761927911561,0.00308764,3859.5,3859.4,9.77783]
[1761927911757,0.13358764,3859.5,3859.4,9.3112]
[1761927911952,0.2303,3859.4,3858.9,3.2078]
[1761927912274,0.1305,3859.0,3858.9,3.83869]
[1761927912456,0.1305,3859.0,3858.9,12.98469]
[1761927912763,0.13358764,3859.5,3859.3,0.46664]
[1761927912958,0.61620456,3859.4,3859.3,0.63084]
[1761927913151,0.61620456,3859.4,3859.3,12.98464]
[1761927913352,0.00308764,3859.5,3859.4,0.46663]
[1761927913660,0.61917289,3859.5,3859.4,0.63083]
[1761927914749,0.00308764,3859.5,3859.4,0.63083]
[1761927915566,0.136,3860.5,3859.7,1.16649]
[1761927915756,1.51651285,3861.0,3860.7,0.1611]
[1761927916064,0.61587434,3860.9,3860.8,9.77256]
[1761927916257,0.61587434,3860.9,3860.8,12.98036]
[1761927916557,0.00243335,3860.9,3860.8,12.3528]
[1761927917156,0.00243335,3860.9,3860.8,12.5139]
[1761927918051,0.23213335,3860.9,3860.8,12.3528]
[1761927918253,0.23213335,3860.9,3860.4,3.2078]
[1761927918454,0.1407,3860.5,3860.4,3.2078]
[1761927918661,0.1407,3860.5,3860.4,12.3518]
[1761927919462,0.1407,3860.5,3860.4,12.5129]
[1761927920862,0.3704,3860.5,3860.1,0.46654]
[1761927921061,0.1407,3860.5,3860.2,9.3051]
[1761927921268,0.1407,3860.5,3860.2,9.77163]
[1761927921469,0.2297,3860.1,3860.0,3.2078]
[1761927921665,0.2297,3860.1,3859.6,3.2078]
[1761927921666,0.1407,3860.0,3859.6,3.2078]
[1761927921863,0.2297,3859.7,3859.6,3.2078]
[1761927922162,0.2297,3859.7,3859.6,9.143]
[1761927922360,0.84231126,3859.7,3859.6,9.143]
[1761927922555,4.05011126,3859.7,3859.6,9.143]
[1761927923651,4.05011126,3859.7,3859.1,9.143]
[1761927923652,0.2179,3859.2,3859.1,9.143]
[1761927923862,0.1419,3859.5,3859.1,9.60966]
[1761927924065,0.1419,3859.5,3859.1,9.143]
[1761927924367,0.2179,3859.2,3859.1,9.143]
[1761927925061,0.1419,3859.5,3859.1,9.143]
[1761927925264,0.1419,3859.5,3859.3,0.161]
[1761927925771,0.2179,3859.2,3859.1,9.143]
[1761927925964,0.1419,3859.5,3859.1,9.77066]
[1761927926160,0.1419,3859.5,3859.1,9.304]
[1761927926362,0.1419,3859.5,3859.1,9.143]
[1761927926667,0.2179,3858.9,3858.8,3.2078]
[1761927926964,0.2179,3858.9,3858.8,12.3508]
[1761927927561,0.1419,3859.5,3858.8,12.3508]
[1761927927765,0.61321908,3859.4,3858.9,0.46668]
[1761927927961,0.1419,3859.5,3859.1,0.46667]
[1761927928367,0.1419,3859.5,3859.2,9.143]
[1761927928769,0.1419,3859.5,3859.4,0.161]
[1761927929364,0.7551914,3859.5,3859.2,9.143]
[1761927929568,0.1419,3859.5,3859.3,9.143]
[1761927929765,0.2179,3859.4,3859.3,9.143]
[1761927930172,0.1419,3859.5,3859.4,0.161]
[1761927930576,3.2078,3860.1,3859.4,0.161]
[1761927930763,0.61330358,3859.9,3859.4,0.161]
[1761927930970,3.2078,3860.1,3859.4,0.161]
[1761927931168,0.6132684,3859.9,3859.4,0.161]
[1761927931367,3.2078,3860.1,3859.4,0.161]
[1761927931675,0.61332384,3859.9,3859.4,0.161]
[1761927931871,0.1419,3859.5,3859.3,9.143]
[1761927932075,0.2179,3859.4,3859.3,9.143]
[1761927932971,0.1419,3859.5,3859.3,9.143]
[1761927933676,0.1419,3859.5,3859.4,0.161]
[1761927934579,3.2078,3860.1,3859.4,0.161]
[1761927934777,0.61341598,3859.9,3859.4,0.161]